[Event "Lviv Tradition May 2018"]
[Site "Lviv"]
[Date "2018.05.19"]
[Round "6"]
[White "Bogdanov, Egor"]
[Black "Galperin, Platon"]
[Result "1-0"]
[ECO "C10"]
[WhiteElo "2335"]
[BlackElo "2332"]
[Annotator "NA"]
[PlyCount "105"]
[EventDate "2018.??.??"]
[EventType "tourn"]
[EventCountry "UKR"]
[SourceTitle "playchess.com"]
[Source "ChessBase"]
[SourceQuality "1"]
[TimeControl "5400+30"]

1. e4 {[%emt 0:00:00]} e6 {[%emt 0:00:14]} 2. d4 {[%emt 0:00:00]} d5 {[%emt 0:00:02]} 3. Nc3 {[%emt 0:00:46]} Nc6 {[%emt 0:00:08]} 4. Nf3 {[%emt 0:01:50]} Nf6 {[%emt 0:00:07]} 5. exd5 {[%emt 0:05:01]} exd5 {[%emt 0:01:05]} 6. Bd3 {[%emt 0:00:39]} Be7 {[%emt 0:11:59]} 7. h3 {[%emt 0:03:46]} Be6 {[%emt 0:01:00]} 8. O-O {[%emt 0:00:12]} a6 {[%emt 0:03:41]} 9. Be3 {[%emt 0:01:46]} h6 {[%emt 0:06:00]} 10. Ne5 {[%emt 0:01:54]} O-O {[%emt 0:03:45]} 11. f4 {[%emt 0:02:03]} Nxe5 {[%emt 0:00:43]} 12. fxe5 {[%emt 0:07:44]} Nd7 {[%emt 0:00:14]} 13. Qf3 {[%emt 0:03:00]} Kh8 {[%emt 0:03:32]} 14. Ne2 {[%emt 0:08:50]} c5 {[%emt 0:03:39]} 15. c3 {[%emt 0:00:56]} f6 {[%emt 0:03:26]} 16. Nf4 {[%emt 0:01:35]} fxe5 {[%emt 0:00:01]} 17. Ng6+ {[%emt 0:00:46]} Kg8 {[%emt 0:00:06]} 18. Nxf8 {[%emt 0:00:21]} Bxf8 {[%emt 0:00:39]} 19. Bf5 {[%emt 0:02:18]} Qe8 {[%emt 0:01:11]} 20. Rae1 {[%emt 0:01:33]} e4 {[%emt 0:03:26]} 21. Qg4 {[%emt 0:00:20]} Bxf5 {[%emt 0:00:14]} 22. Qxf5 {[%emt 0:00:13]} Nf6 {[%emt 0:00:26]} 23. dxc5 {[%emt 0:02:25]} Qc6 {[%emt 0:00:04]} 24. b4 {[%emt 0:01:00]} b6 {[%emt 0:00:01]} 25. cxb6 {[%emt 0:00:27]} Qxc3 {[%emt 0:00:04]} 26. Qe6+ {[%emt 0:00:11]} Kh7 {[%emt 0:00:27]} 27. b7 {[%emt 0:01:33]} Rb8 {[%emt 0:00:35]} 28. Qxa6 {[%emt 0:01:23]} Qc7 {[%emt 0:00:06]} 29. Rc1 {[%emt 0:04:06]} Qxb7 {[%emt 0:00:10]} 30. Qxb7 {[%emt 0:00:03]} Rxb7 {[%emt 0:00:06]} 31. a3 {[%emt 0:00:16]} Bd6 {[%emt 0:00:43]} 32. Bd4 {[%emt 0:00:44]} Nh5 {[%emt 0:01:16]} 33. Rc6 {[%emt 0:00:25]} Bg3 {[%emt 0:00:51]} 34. Rf5 {[%emt 0:00:39]} Nf4 {[%emt 0:00:32]} 35. Be5 {[%emt 0:02:47]} Ne2+ {[%emt 0:00:28]} 36. Kf1 {[%emt 0:00:05]} Bxe5 {[%emt 0:01:36]} 37. Kxe2 {[%emt 0:00:44]} Re7 {[%emt 0:00:37]} 38. Ke3 {[%emt 0:10:29]} g6 {[%emt 0:02:44]} 39. Rxe5 {[%emt 0:00:51]} Rxe5 {[%emt 0:00:01]} 40. Rc7+ {[%emt 0:00:10]} Kg8 {[%emt 0:00:08]} 41. a4 {[%emt 0:00:42]} Kf8 {[%emt 0:00:55]} 42. b5 {[%emt 0:00:28]} Ke8 {[%emt 0:00:06]} 43. b6 {[%emt 0:02:01]} Kd8 {[%emt 0:00:04]} 44. a5 {[%emt 0:04:34]} d4+ {[%emt 0:00:08]} 45. Kxd4 {[%emt 0:00:05]} Rxa5 {[%emt 0:00:04]} 46. Kxe4 {[%emt 0:00:08]} Rg5 {[%emt 0:01:15]} 47. Rc6 {[%emt 0:01:22]} Kd7 {[%emt 0:00:09]} 48. b7 {[%emt 0:00:20]} Kxc6 {[%emt 0:00:09]} 49. b8=Q {[%emt 0:00:06]} Rxg2 {[%emt 0:00:23]} 50. Ke5 {[%emt 0:00:17]} Rg5+ {[%emt 0:00:27]} 51. Kf6 {[%emt 0:00:07]} Kd5 {[%emt 0:00:33]} 52. h4 {[%emt 0:00:49]} Rg4 {[%emt 0:00:35]} 53. Qe5+ {[%emt 0:00:05]} 1-0

[Event "Lviv Tradition May 2018"]
[Site "Lviv"]
[Date "2018.05.19"]
[Round "6"]
[White "Oglaza, Oskar"]
[Black "Terletsky, Oleg"]
[Result "1/2-1/2"]
[ECO "E90"]
[WhiteElo "2279"]
[BlackElo "2288"]
[Annotator "NA"]
[PlyCount "76"]
[EventDate "2018.??.??"]
[EventType "tourn"]
[EventCountry "UKR"]
[SourceTitle "playchess.com"]
[Source "ChessBase"]
[SourceQuality "1"]
[TimeControl "5400+30"]

1. d4 {[%emt 0:00:00]} Nf6 {[%emt 0:05:59]} 2. c4 {[%emt 0:00:00]} g6 {[%emt 0:00:03]} 3. Nc3 {[%emt 0:00:07]} Bg7 {[%emt 0:00:05]} 4. e4 {[%emt 0:00:07]} d6 {[%emt 0:00:03]} 5. Nf3 {[%emt 0:00:06]} O-O {[%emt 0:00:09]} 6. h3 {[%emt 0:00:38]} e5 {[%emt 0:00:07]} 7. d5 {[%emt 0:00:10]} a5 {[%emt 0:00:03]} 8. g4 {[%emt 0:00:19]} Na6 {[%emt 0:00:19]} 9. Be3 {[%emt 0:00:58]} Nd7 {[%emt 0:06:28]} 10. a3 {[%emt 0:02:53]} Nb6 {[%emt 0:00:06]} 11. Rg1 {[%emt 0:00:50]} Nc5 {[%emt 0:01:44]} 12. b4 {[%emt 0:03:48]} axb4 {[%emt 0:10:01]} 13. axb4 {[%emt 0:00:07]} Rxa1 {[%emt 0:00:01]} 14. Qxa1 {[%emt 0:00:09]} Nb3 {[%emt 0:00:02]} 15. Qd1 {[%emt 0:00:43]} Nd4 {[%emt 0:00:06]} 16. Nxd4 {[%emt 0:00:26]} exd4 {[%emt 0:00:02]} 17. Bxd4 {[%emt 0:00:06]} g5 {[%emt 0:00:03]} 18. Bxg7 {[%emt 0:02:39]} Kxg7 {[%emt 0:00:02]} 19. Qd4+ {[%emt 0:01:33]} f6 {[%emt 0:09:58]} 20. f4 {[%emt 0:08:52]} Nd7 {[%emt 0:03:34]} 21. f5 {[%emt 0:01:56]} Ne5 {[%emt 0:00:30]} 22. Be2 {[%emt 0:00:12]} Bd7 {[%emt 0:02:17]} 23. Qa7 {[%emt 0:00:46]} Qa8 {[%emt 0:00:38]} 24. Qxa8 {[%emt 0:00:28]} Rxa8 {[%emt 0:00:02]} 25. Kd2 {[%emt 0:00:22]} b6 {[%emt 0:01:10]} 26. Rb1 {[%emt 0:05:01]} Ra7 {[%emt 0:00:06]} 27. Rb2 {[%emt 0:00:50]} Be8 {[%emt 0:00:18]} 28. Ra2 {[%emt 0:02:10]} Rxa2+ {[%emt 0:00:16]} 29. Nxa2 {[%emt 0:00:04]} h5 {[%emt 0:04:49]} 30. Kc3 {[%emt 0:00:26]} hxg4 {[%emt 0:01:44]} 31. hxg4 {[%emt 0:00:05]} Kf8 {[%emt 0:00:19]} 32. Nc1 {[%emt 0:00:15]} Ba4 {[%emt 0:10:05]} 33. Nd3 {[%emt 0:08:13]} Nxd3 {[%emt 0:01:09]} 34. Kxd3 {[%emt 0:00:04]} Ke7 {[%emt 0:01:44]} 35. b5 {[%emt 0:01:18]} Kf7 {[%emt 0:00:50]} 36. Kd2 {[%emt 0:00:18]} Bb3 {[%emt 0:00:40]} 37. Kc3 {[%emt 0:00:04]} Ba4 {[%emt 0:00:16]} 38. Kb2 {[%emt 0:00:17]} Ke7 {[%emt 0:00:14]} 1/2-1/2

[Event "Lviv Tradition May 2018"]
[Site "Lviv"]
[Date "2018.05.19"]
[Round "6"]
[White "Fiedorek, Michal"]
[Black "Peng, Li Min"]
[Result "1/2-1/2"]
[ECO "B06"]
[WhiteElo "2081"]
[BlackElo "2320"]
[Annotator "NA"]
[PlyCount "76"]
[EventDate "2018.??.??"]
[EventType "tourn"]
[EventCountry "UKR"]
[SourceTitle "playchess.com"]
[Source "ChessBase"]
[SourceQuality "1"]
[TimeControl "5400+30"]

1. e4 {[%emt 0:00:00]} g6 {[%emt 0:01:43]} 2. d4 {[%emt 0:00:00]} Bg7 {[%emt 0:00:04]} 3. Nc3 {[%emt 0:00:00]} d6 {[%emt 0:00:03]} 4. Be3 {[%emt 0:00:59]} a6 {[%emt 0:00:14]} 5. Qd2 {[%emt 0:00:35]} b5 {[%emt 0:01:17]} 6. O-O-O {[%emt 0:00:51]} Bb7 {[%emt 0:00:14]} 7. f3 {[%emt 0:00:11]} Nd7 {[%emt 0:00:48]} 8. g4 {[%emt 0:01:47]} c5 {[%emt 0:03:50]} 9. h4 {[%emt 0:05:07]} h6 {[%emt 0:02:53]} 10. dxc5 {[%emt 0:06:18]} dxc5 {[%emt 0:03:15]} 11. Nh3 {[%emt 0:16:42]} Qc7 {[%emt 0:04:09]} 12. Nd5 {[%emt 0:24:11]} Qc6 {[%emt 0:04:26]} 13. g5 {[%emt 0:03:13]} e6 {[%emt 0:10:36]} 14. Nc3 {[%emt 0:05:50]} h5 {[%emt 0:03:39]} 15. Nf2 {[%emt 0:03:24]} Ne7 {[%emt 0:04:11]} 16. f4 {[%emt 0:01:12]} O-O-O {[%emt 0:05:09]} 17. Qd6 {[%emt 0:06:43]} Qxd6 {[%emt 0:01:05]} 18. Rxd6 {[%emt 0:00:05]} Kc7 {[%emt 0:00:25]} 19. Rd2 {[%emt 0:01:27]} Nc8 {[%emt 0:04:02]} 20. Be2 {[%emt 0:05:41]} Bxc3 {[%emt 0:02:33]} 21. bxc3 {[%emt 0:00:03]} Nd6 {[%emt 0:00:31]} 22. Rhd1 {[%emt 0:00:39]} Nxe4 {[%emt 0:03:24]} 23. Nxe4 {[%emt 0:00:39]} Bxe4 {[%emt 0:00:02]} 24. c4 {[%emt 0:01:43]} b4 {[%emt 0:01:27]} 25. Rd6 {[%emt 0:01:50]} Bc6 {[%emt 0:00:07]} 26. Bf2 {[%emt 0:01:13]} Bb7 {[%emt 0:06:24]} 27. Bg1 {[%emt 0:01:15]} a5 {[%emt 0:02:41]} 28. Bf2 {[%emt 0:00:36]} Rhe8 {[%emt 0:02:58]} 29. Bg1 {[%emt 0:00:55]} Be4 {[%emt 0:02:18]} 30. R1d2 {[%emt 0:02:07]} Bf5 {[%emt 0:07:55]} 31. Bf2 {[%emt 0:06:34]} Be4 {[%emt 0:05:24]} 32. Bg1 {[%emt 0:00:19]} a4 {[%emt 0:01:40]} 33. Bf2 {[%emt 0:00:45]} a3 {[%emt 0:02:43]} 34. Bg1 {[%emt 0:00:27]} Kc8 {[%emt 0:00:44]} 35. Bf1 {[%emt 0:01:51]} Kc7 {[%emt 0:01:21]} 36. Bf2 {[%emt 0:01:12]} Kc8 {[%emt 0:00:19]} 37. Bg1 {[%emt 0:00:23]} Bf3 {[%emt 0:01:13]} 38. R2d3 {[%emt 0:00:26]} Be4 1/2-1/2

[Event "Lviv Tradition May 2018"]
[Site "Lviv"]
[Date "2018.05.20"]
[Round "7"]
[White "Goluch, Piotr"]
[Black "Oglaza, Oskar"]
[Result "1/2-1/2"]
[ECO "D76"]
[WhiteElo "2351"]
[BlackElo "2279"]
[Annotator "NA"]
[PlyCount "136"]
[EventDate "2018.??.??"]
[EventType "tourn"]
[EventCountry "UKR"]
[SourceTitle "playchess.com"]
[Source "ChessBase"]
[SourceQuality "1"]
[TimeControl "5400+30"]

1. Nf3 {[%emt 0:00:00]} Nf6 {[%emt 0:00:11]} 2. c4 {[%emt 0:00:00]} g6 {[%emt 0:00:42]} 3. g3 {[%emt 0:00:00]} Bg7 {[%emt 0:00:35]} 4. Bg2 {[%emt 0:00:00]} O-O {[%emt 0:00:44]} 5. O-O {[%emt 0:00:00]} d5 {[%emt 0:00:08]} 6. cxd5 {[%emt 0:00:02]} Nxd5 {[%emt 0:00:13]} 7. d4 {[%emt 0:00:04]} Nb6 {[%emt 0:00:20]} 8. Nc3 {[%emt 0:00:08]} Nc6 {[%emt 0:00:19]} 9. e3 {[%emt 0:00:05]} Re8 {[%emt 0:00:12]} 10. Re1 {[%emt 0:00:24]} a5 {[%emt 0:00:35] D76: Fianchetto Grünfeld: Main Line with 7...Nb6} 11. Qe2 {[%emt 0:00:19]} (11. h3 a4 12. Rb1 a3 13. bxa3 e5 14. dxe5 Nxe5 15. Qxd8 Nxf3+ 16. Bxf3 Rxd8 17. Nb5 Be5 18. Nd4 Bxh3 19. Bxb7 Bxd4 20. exd4 {1-0 (38) Ivanchuk,V (2726)-Muzychuk,M (2540) Caleta 2018}) 11... Be6 {[%emt 0:01:30]} 12. Rd1 {[%emt 0:01:50]} Nb4 {[%emt 0:14:29]} 13. Nd2 {[%emt 0:06:45]} c6 {[%emt 0:00:24]} 14. a3 {[%emt 0:04:36]} N4d5 {[%emt 0:00:18] LiveBook: 28 Games} 15. Nce4 {[%emt 0:00:09]} Bf5 {[%emt 0:11:31]} 16. Nc5 {[%emt 0:04:50]} e5 {[%emt 0:00:10]} 17. e4 {[%emt 0:13:26]} exd4 {[%emt 0:00:23]} 18. Qf3 {[%emt 0:00:14]} Qe7 $146 {[%emt 0:00:26]} 19. Nd3 {[%emt 0:00:12]} Be6 {[%emt 0:00:13]} 20. Re1 {[%emt 0:20:35]} Nc7 {[%emt 0:01:46]} 21. e5 {[%emt 0:01:51]} Bd5 {[%emt 0:00:41]} 22. Ne4 {[%emt 0:00:13]} Ne6 {[%emt 0:00:32]} 23. h4 {[%emt 0:01:51]} Nc4 {[%emt 0:01:08]} 24. Nf6+ {[%emt 0:06:38]} Bxf6 {[%emt 0:01:58]} 25. Qxf6 {[%emt 0:00:07]} Qxf6 {[%emt 0:00:28]} 26. exf6 {[%emt 0:00:05]} Bxg2 {[%emt 0:02:21]} 27. Kxg2 {[%emt 0:00:04]} a4 {[%emt 0:00:06]} 28. h5 {[%emt 0:00:21]} Nc7 {[%emt 0:04:22]} 29. Rh1 {[%emt 0:05:56]} Nd5 {[%emt 0:14:05]} 30. hxg6 {[%emt 0:00:48]} fxg6 {[%emt 0:00:12]} 31. f7+ {[%emt 0:00:20]} Kxf7 {[%emt 0:00:03]} 32. Rxh7+ {[%emt 0:00:04]} Kf6 {[%emt 0:00:15]} 33. Rh4 {[%emt 0:10:57]} Nd6 {[%emt 0:07:53]} 34. Rxd4 {[%emt 0:00:37]} Re4 {[%emt 0:00:05]} 35. Rxe4 {[%emt 0:01:07]} Nxe4 {[%emt 0:00:04]} 36. Nf4 {[%emt 0:02:30]} Ra5 {[%emt 0:01:18]} 37. Kf3 {[%emt 0:03:00]} Ng5+ {[%emt 0:05:00]} 38. Kg4 {[%emt 0:00:34]} Ne4 {[%emt 0:01:06]} 39. Nxd5+ {[%emt 0:00:04]} Rxd5 {[%emt 0:00:30]} 40. Be3 {[%emt 0:00:04]} Nd6 {[%emt 0:00:38]} 41. Rc1 {[%emt 0:01:15]} Nf7 {[%emt 0:02:01]} 42. Kf3 {[%emt 0:02:29]} Ne5+ {[%emt 0:02:47]} 43. Ke4 {[%emt 0:00:51]} b5 {[%emt 0:01:36] [#]} 44. Rh1 $2 {[%emt 0:06:17]} ({Der einzige Zug:} 44. Rxc6+ $1 $18 {[%mdl 512]} Nxc6 45. Kxd5) 44... Nc4 {[%emt 0:00:46]} 45. Bd4+ {[%emt 0:01:45]} Ke6 {[%emt 0:00:07]} 46. Bc3 {[%emt 0:00:28]} Nd6+ {[%emt 0:01:55]} 47. Kf3 {[%emt 0:00:43]} Nf7 {[%emt 0:06:09]} 48. Ke3 {[%emt 0:00:40]} c5 {[%emt 0:00:36]} 49. Rh7 {[%emt 0:00:51]} Nd6 {[%emt 0:00:39]} 50. g4 {[%emt 0:00:40]} Nc4+ {[%emt 0:02:13]} 51. Ke4 {[%emt 0:00:43]} Nd2+ {[%emt 0:00:32]} 52. Ke3 {[%emt 0:00:27]} Nc4+ {[%emt 0:00:06]} 53. Ke2 {[%emt 0:00:27]} b4 {[%emt 0:03:34]} 54. axb4 {[%emt 0:00:05]} cxb4 {[%emt 0:00:03]} 55. Bxb4 {[%emt 0:00:03]} Nxb2 {[%emt 0:00:06]} 56. Re7+ {[%emt 0:03:29]} Kf6 {[%emt 0:00:08]} 57. Ra7 {[%emt 0:00:11]} Kg5 {[%emt 0:02:35]} 58. f3 {[%emt 0:02:25]} Kf4 {[%emt 0:04:19]} 59. Bc3 {[%emt 0:00:42]} Rc5 {[%emt 0:01:27]} 60. Bd2+ {[%emt 0:01:04]} Kg3 {[%emt 0:00:25]} 61. Be1+ {[%emt 0:00:02]} Kg2 {[%emt 0:00:20]} 62. f4 {[%emt 0:00:06]} Rc4 {[%emt 0:03:15]} 63. Ke3 {[%emt 0:03:02]} Nd1+ {[%emt 0:00:47]} 64. Kd2 {[%emt 0:00:11]} Nf2 {[%emt 0:01:57]} 65. Bxf2 {[%emt 0:00:16]} Kxf2 {[%emt 0:00:10]} 66. Ra6 {[%emt 0:00:34]} a3 $11 {[%emt 0:03:18]} 67. g5 {[%emt 0:00:03]} Rxf4 {[%emt 0:01:19]} 68. Kc2 {[%emt 0:00:59]} Kg3 {[%emt 0:00:26]} 1/2-1/2

[Event "Lviv Tradition May 2018"]
[Site "Lviv"]
[Date "2018.05.20"]
[Round "7"]
[White "Galperin, Platon"]
[Black "Fiedorek, Michal"]
[Result "1-0"]
[ECO "A14"]
[WhiteElo "2332"]
[BlackElo "2081"]
[Annotator "NA"]
[PlyCount "77"]
[EventDate "2018.??.??"]
[EventType "tourn"]
[EventCountry "UKR"]
[SourceTitle "playchess.com"]
[Source "ChessBase"]
[SourceQuality "1"]
[TimeControl "5400+30"]

1. Nf3 {[%emt 0:00:00]} d5 {[%emt 0:00:07]} 2. c4 {[%emt 0:00:00]} e6 {[%emt 0:00:12]} 3. g3 {[%emt 0:00:00]} Nf6 {[%emt 0:00:12]} 4. Bg2 {[%emt 0:00:00]} Be7 {[%emt 0:00:12]} 5. O-O {[%emt 0:00:00]} O-O {[%emt 0:00:06]} 6. b3 {[%emt 0:00:00]} c5 {[%emt 0:00:11]} 7. Bb2 {[%emt 0:00:00]} Nc6 {[%emt 0:00:26]} 8. e3 {[%emt 0:00:21]} b6 {[%emt 0:00:37]} 9. d3 {[%emt 0:04:09]} Ba6 {[%emt 0:08:00]} 10. Qe2 {[%emt 0:03:05]} Qd7 {[%emt 0:03:11] A14: English Opening: 1...e6 with b3 by White} (10... Rc8 11. Rd1 Qd7 12. Nc3 Rfd8 13. Rac1 d4 14. exd4 Nxd4 15. Nxd4 cxd4 16. Nb1 Qc7 17. f4 Bb7 18. Nd2 Bxg2 19. Kxg2 {0-1 (42) Le,Q (2714)-Wang,Y (2697) Beijing 2011}) 11. Nbd2 {[%emt 0:00:19]} Rfd8 {[%emt 0:01:01]} 12. Rad1 {[%emt 0:06:38]} Rac8 {[%emt 0:01:37]} 13. e4 {[%emt 0:03:04]} dxc4 {[%emt 0:07:10]} 14. dxc4 {[%emt 0:00:17]} Qd3 {[%emt 0:07:28]} 15. Qxd3 {[%emt 0:01:50]} Rxd3 {[%emt 0:00:06]} 16. e5 {[%emt 0:00:09]} Ne8 {[%emt 0:02:18]} 17. Ne4 {[%emt 0:02:08]} Rxd1 {[%emt 0:04:50]} 18. Rxd1 {[%emt 0:00:36]} Rd8 $146 {[%emt 0:00:44]} 19. Rxd8 {[%emt 0:02:33]} Nxd8 {[%emt 0:01:02]} 20. h4 {[%emt 0:01:16]} Bb7 {[%emt 0:04:42]} 21. Nh2 {[%emt 0:00:18]} f5 {[%emt 0:05:34]} 22. exf6 {[%emt 0:02:31]} gxf6 {[%emt 0:00:59]} 23. g4 {[%emt 0:04:38]} Kf7 {[%emt 0:15:48]} 24. f4 $11 {[%emt 0:02:17]} Nd6 {[%emt 0:02:33]} 25. Ng3 {[%emt 0:00:19]} Bxg2 {[%emt 0:00:48]} 26. Kxg2 {[%emt 0:00:02]} Nc6 {[%emt 0:01:20]} 27. g5 {[%emt 0:02:09]} e5 {[%emt 0:07:51]} 28. fxe5 {[%emt 0:03:21]} Nxe5 {[%emt 0:00:21]} 29. Bxe5 {[%emt 0:01:01]} fxe5 {[%emt 0:00:05]} 30. Ng4 {[%emt 0:00:24]} Ke6 {[%emt 0:06:23]} 31. Kf3 {[%emt 0:00:07]} b5 {[%emt 0:01:22]} 32. Ne3 {[%emt 0:00:34]} bxc4 {[%emt 0:04:39]} 33. bxc4 {[%emt 0:01:47]} Nf7 {[%emt 0:02:52]} 34. Ne4 {[%emt 0:00:49]} Nd8 {[%emt 0:01:45]} 35. Kg4 {[%emt 0:01:59]} Nc6 {[%emt 0:01:10]} 36. h5 {[%emt 0:02:35]} Nd4 {[%emt 0:03:03]} 37. Nd5 {[%emt 0:00:32]} Nc2 {[%emt 0:00:44]} 38. h6 {[%emt 0:01:07]} Bf8 {[%emt 0:00:52]} 39. Nef6 {[%emt 0:00:32] Kxd5} 1-0

[Event "Lviv Tradition May 2018"]
[Site "Lviv"]
[Date "2018.05.20"]
[Round "7"]
[White "Peng, Li Min"]
[Black "Shkuran, Danylo"]
[Result "1-0"]
[ECO "B10"]
[WhiteElo "2320"]
[BlackElo "2395"]
[Annotator "NA"]
[PlyCount "71"]
[EventDate "2018.??.??"]
[EventType "tourn"]
[EventCountry "UKR"]
[SourceTitle "playchess.com"]
[Source "ChessBase"]
[SourceQuality "1"]
[TimeControl "5400+30"]

1. e4 {[%emt 0:02:24]} c6 {[%emt 0:00:22]} 2. d3 {[%emt 0:01:48]} d5 {[%emt 0:00:35]} 3. Nd2 {[%emt 0:00:04]} e6 {[%emt 0:01:22]} 4. Ngf3 {[%emt 0:00:38]} Be7 {[%emt 0:00:50]} 5. g3 {[%emt 0:00:12]} Nf6 {[%emt 0:00:45]} 6. Bg2 {[%emt 0:00:17] LiveBook: 5 Games} O-O {[%emt 0:00:26]} 7. O-O {[%emt 0:00:09]} c5 {[%emt 0:00:37] A07: Réti Opening: New York and Capablanca Systems} 8. e5 {[%emt 0:03:18]} Nfd7 {[%emt 0:00:56]} (8... Ne8 9. Re1 Nc6 10. Nf1 Nc7 11. h4 f5 12. exf6 Bxf6 13. Ne3 e5 14. c4 d4 15. Nd5 {1-0 (79) Zhou,W (2627)-Xu,Y (2443) China 2015}) 9. c4 {[%emt 0:09:43]} Nc6 {[%emt 0:09:51]} 10. Qe2 {[%emt 0:01:20]} d4 {[%emt 0:10:19]} 11. Re1 {[%emt 0:04:51]} a6 $146 {[%emt 0:10:09]} ({Predecessor:} 11... Qc7 12. Nf1 a6 13. h4 b5 14. b3 bxc4 15. bxc4 Rb8 16. Bf4 Re8 17. N1h2 {½-½ (17) Muller,M-Wolrich,C (2140) Rochefort 1998}) 12. h4 {[%emt 0:03:56]} Re8 {[%emt 0:03:48]} 13. Nf1 {[%emt 0:13:11]} Bf8 {[%emt 0:10:52]} 14. Bf4 {[%emt 0:00:30]} Rb8 {[%emt 0:13:58]} 15. b3 {[%emt 0:00:28]} Qc7 {[%emt 0:02:42]} 16. Qe4 {[%emt 0:05:59]} h6 {[%emt 0:02:06]} 17. g4 {[%emt 0:09:35]} Ne7 {[%emt 0:05:29]} 18. h5 {[%emt 0:17:27]} b5 {[%emt 0:03:14]} 19. Qe2 {[%emt 0:00:19]} Bb7 {[%emt 0:02:24]} 20. Ng3 {[%emt 0:00:20]} bxc4 {[%emt 0:04:18]} 21. bxc4 {[%emt 0:00:09]} Bc6 {[%emt 0:00:03]} 22. Rad1 {[%emt 0:00:29]} Rb6 {[%emt 0:06:33]} 23. g5 {[%emt 0:02:08]} Bxf3 {[%emt 0:03:52]} 24. Bxf3 {[%emt 0:00:08]} hxg5 {[%emt 0:03:16]} 25. Bxg5 {[%emt 0:00:04]} Reb8 {[%emt 0:00:52]} 26. Rd2 {[%emt 0:00:59]} Nc6 {[%emt 0:01:53]} 27. Bxc6 {[%emt 0:02:59]} Rxc6 {[%emt 0:01:00]} 28. f4 {[%emt 0:01:07]} Rcb6 {[%emt 0:01:21]} 29. Ne4 {[%emt 0:00:08]} Rb1 {[%emt 0:00:20]} 30. Kh2 {[%emt 0:01:38]} Qb6 {[%emt 0:00:35]} 31. Rxb1 {[%emt 0:01:53]} Qxb1 {[%emt 0:00:06]} 32. Ng3 {[%emt 0:00:05]} Qb6 {[%emt 0:00:58]} (32... Qc1 $14) 33. Qg4 {[%emt 0:00:48]} Kh8 $2 {[%emt 0:00:33]} (33... Qb1 $16) 34. Rg2 {[%emt 0:01:24]} Qc6 {[%emt 0:00:33]} 35. Ne4 {[%emt 0:01:28]} Kh7 {[%emt 0:00:15] [#]} 36. Bf6 {[%emt 0:00:40]} 1-0